bitfinex-derivatives/quotes_ETHF0:USTF0_20210109
["timestamp","ask_amount","ask_price","bid_price","bid_amount"]
[1610171897769,4.00959,1183.9,1183.7,50.0]
[1610171897968,4.00959,1183.9,1183.8,50.0]
[1610171898171,4.00959,1183.9,1183.8,31.038]
[1610171898569,4.00959,1183.9,1183.6,0.59469078]
[1610171898570,7.10882663,1183.9,1183.7,50.0]
[1610171898770,12.71461796,1183.9,1183.8,50.0]
[1610171898969,12.71461796,1183.9,1183.6,0.59469078]
[1610171899170,61.8369,1183.8,1183.6,0.59469078]
[1610171899572,6.66675438,1183.7,1183.6,0.59469078]
[1610171899769,10.67634438,1183.7,1183.6,0.59469078]
[1610171899971,18.94260109,1183.7,1183.6,0.59469078]
[1610171900372,29.10983903,1183.7,1183.6,0.59469078]
[1610171900571,20.84325525,1183.7,1183.6,0.59469078]
[1610171900972,15.67684481,1183.7,1183.6,50.59469078]
[1610171901573,4.00959,1183.7,1183.6,50.59469078]
[1610171904774,4.00959,1183.7,1183.6,52.80669078]
[1610171906174,0.3723,1184.1,1183.6,52.80669078]
[1610171906374,0.3723,1184.1,1183.7,50.0]
[1610171906776,0.3723,1184.1,1183.8,50.0]
[1610171907177,0.3723,1184.1,1183.7,50.0]
[1610171907575,0.3723,1184.1,1183.9,50.0]
[1610171907777,4.00959,1184.0,1183.9,50.0]
[1610171907976,4.00959,1184.0,1183.9,1.9738]
[1610171908577,4.00959,1184.0,1183.9,51.9738]
[1610171910380,4.00959,1184.0,1183.9,1.9738]
[1610171910981,7.10864006,1184.0,1183.9,1.9738]
[1610171911180,7.10864006,1184.0,1183.7,50.0]
[1610171911582,15.71826326,1184.0,1183.9,50.0]
[1610171911782,15.71826326,1184.0,1183.7,50.0]
[1610171911982,17.50889334,1184.0,1183.7,50.0]
[1610171912182,17.50889334,1184.0,1183.9,50.0]
[1610171912381,17.50889334,1184.0,1183.6,3.15469078]
[1610171912583,17.50889334,1184.0,1183.8,50.0]
[1610171912782,17.50889334,1184.0,1183.9,50.0]
[1610171912783,4.00959,1184.0,1183.9,50.0]
[1610171912981,4.00959,1184.0,1183.9,2.5327]
[1610171913182,24.19141632,1184.0,1183.9,2.5327]
[1610171913483,12.61041671,1184.0,1183.9,2.5327]
[1610171913884,17.6168718,1184.0,1183.9,2.5327]
[1610171914084,17.6168718,1184.0,1183.6,0.59469078]
[1610171914284,39.59507305,1184.0,1183.6,0.59469078]
[1610171914485,47.16707305,1184.0,1183.6,0.59469078]
[1610171914688,8.59550376,1183.7,1183.6,0.59469078]
[1610171914885,2.0136,1183.7,1183.6,0.59469078]
[1610171915285,15.61830798,1183.7,1183.6,0.59469078]
[1610171915486,15.61830798,1183.7,1183.6,50.59469078]
[1610171915887,19.62789798,1183.7,1183.6,50.59469078]
[1610171916088,17.72354398,1183.7,1183.6,50.59469078]
[1610171916286,26.19983123,1183.7,1183.6,50.59469078]
[1610171916687,19.50613614,1183.7,1183.6,50.59469078]
[1610171917491,19.50613614,1183.7,1183.6,0.59469078]
[1610171917693,15.8095385,1183.7,1183.6,0.59469078]
[1610171917891,15.8095385,1183.7,1183.6,50.59469078]
[1610171918089,17.71397183,1183.7,1183.6,50.59469078]
[1610171918491,17.71397183,1183.7,1183.6,0.59469078]
[1610171918893,17.71397183,1183.7,1183.6,50.59469078]
[1610171919494,9.12304093,1183.7,1183.6,45.51769078]
[1610171919694,9.12304093,1183.7,1183.6,32.11009078]
[1610171919894,17.69842583,1183.7,1183.6,31.23459078]
[1610171920299,52.4989,1183.6,1183.5,50.0]
[1610171920497,30.0,1183.6,1182.8,50.0]
[1610171920698,63.8769,1183.5,1182.8,50.0]
[1610171920898,6.64798868,1182.9,1182.8,50.0]
[1610171921098,36.64798868,1182.9,1182.8,50.0]
[1610171921501,36.64798868,1182.9,1182.5,50.0]
[1610171921701,46.81544483,1182.9,1182.7,50.0]
[1610171921902,18.92501699,1182.8,1182.2,50.0]
[1610171922103,18.92501699,1182.8,1182.6,50.0]
[1610171922305,17.39709046,1182.8,1182.6,50.0]
[1610171922501,48.4094,1182.7,1182.4,2.1216]
[1610171922702,48.4094,1182.7,1182.5,50.0]
[1610171922903,78.4094,1182.7,1182.5,50.0]
[1610171923102,78.4094,1182.7,1182.6,50.0]
[1610171923305,36.63952622,1182.7,1182.6,50.0]
[1610171923503,14.91210654,1182.7,1182.5,50.0]
[1610171923904,14.91210654,1182.7,1182.6,50.0]
[1610171923905,7.84606616,1182.7,1182.6,50.0]
[1610171924106,13.38541789,1182.9,1182.6,50.0]
[1610171924306,13.38541789,1182.9,1182.4,2.1216]
[1610171924307,13.38541789,1182.9,1182.5,50.0]
[1610171924602,13.39879463,1183.2,1182.7,50.0]
[1610171924802,13.40922683,1183.3,1182.7,2.2732]
[1610171925204,13.4169886,1183.5,1182.8,50.0]
[1610171925602,13.42984418,1183.8,1182.9,50.0]
[1610171925903,13.43233481,1183.9,1183.1,4.00959]
[1610171926103,13.43233481,1183.9,1183.1,6.72159]
[1610171926303,13.41883372,1183.8,1183.2,50.0]
[1610171926503,13.41945235,1183.9,1183.2,50.0]
[1610171926705,13.41945235,1183.9,1183.3,50.0]
[1610171926903,13.41721453,1184.0,1183.3,50.0]
[1610171927104,13.41721453,1184.0,1183.2,50.0]
[1610171927303,13.41721453,1184.0,1183.3,50.0]
[1610171927502,6.66106221,1184.0,1183.3,50.0]
[1610171927704,13.79515613,1184.1,1183.2,50.0]
[1610171927907,4.00959,1183.3,1183.2,50.0]
[1610171928106,34.00959,1183.3,1183.1,2.712]
[1610171928305,34.00959,1183.3,1183.2,50.0]
[1610171928705,94.52489,1183.3,1183.1,52.712]
[1610171928908,98.98949435,1183.3,1183.1,52.712]
[1610171929106,107.91395853,1183.3,1183.1,2.712]
[1610171929306,13.3824762,1183.2,1182.9,50.0]
[1610171929507,30.0,1183.1,1182.5,50.0]
[1610171929708,6.63462516,1183.0,1182.6,50.0]
[1610171929908,4.00959,1182.7,1182.6,50.0]
[1610171930109,12.62559201,1182.7,1182.5,50.0]
[1610171930308,51.2907,1182.6,1182.1,2.4865]
[1610171930511,61.01537411,1182.6,1181.3,6.546]
[1610171930709,62.84257411,1182.6,1182.5,50.0]
[1610171930910,68.01424217,1182.6,1181.6,1.8775]
[1610171931111,76.28858364,1182.6,1181.6,1.8775]
[1610171931310,76.28858364,1182.6,1182.5,50.0]
[1610171931511,61.63379136,1182.6,1182.3,50.0]
[1610171931710,78.18467374,1182.6,1182.3,50.0]
[1610171931910,4.00959,1182.4,1181.9,50.0]
[1610171932111,12.51959228,1182.4,1181.9,50.0]
[1610171932311,52.3943,1182.1,1182.0,50.0]
[1610171932511,65.72304737,1182.1,1182.0,50.0]
[1610171932711,65.72304737,1182.1,1181.9,50.0]
[1610171932912,65.72304737,1182.1,1182.0,50.0]
[1610171933114,60.99516781,1182.1,1182.0,50.0]
[1610171933313,4.82234269,1182.1,1181.9,50.0]
[1610171933515,6.62070249,1182.3,1182.0,50.0]
[1610171933516,8.62651305,1182.3,1182.0,50.0]
[1610171933715,8.62651305,1182.3,1182.0,52.6617]
[1610171933916,13.38095529,1182.5,1182.2,4.00959]
[1610171934116,9.18093621,1182.7,1182.2,4.00959]
[1610171934117,4.00959,1182.7,1182.2,4.00959]
[1610171934516,4.00959,1182.7,1182.3,50.0]
[1610171934716,8.65161259,1182.9,1182.3,52.2066]
[1610171934917,13.42897193,1183.3,1182.4,50.0]
[1610171935316,8.57036798,1183.5,1182.5,50.0]
[1610171935317,13.44172182,1183.5,1182.5,50.0]
[1610171935517,13.44442974,1183.6,1182.5,50.0]
[1610171935718,7.53212027,1183.6,1182.4,50.0]
[1610171935917,4.00959,1183.0,1182.9,4.00959]
[1610171936118,13.43887534,1183.6,1182.9,4.00959]
[1610171936317,13.43887534,1183.6,1182.9,5.94389]
[1610171936517,30.0,1185.9,1182.9,5.94389]
[1610171936518,8.57874462,1184.1,1183.0,50.0]
[1610171936717,13.44111595,1183.9,1183.0,50.0]
[1610171936917,13.44111595,1183.9,1183.1,50.0]
[1610171937118,13.44551863,1184.1,1183.1,50.0]
[1610171937319,13.44551863,1184.1,1183.0,50.0]
[1610171937518,13.44937155,1184.2,1183.2,50.0]
[1610171937718,8.58338702,1184.4,1183.2,2.7052]
[1610171937922,13.45208103,1184.3,1183.8,4.00959]
[1610171938119,8.68791708,1184.4,1183.8,4.00959]
[1610171938319,8.68791708,1184.4,1183.9,50.0]
[1610171938518,13.46245889,1184.4,1183.9,50.0]
[1610171938719,13.46245889,1184.4,1184.0,50.0]
[1610171938919,13.45703844,1184.3,1184.0,50.0]
[1610171939119,13.45703844,1184.3,1183.9,50.0]
[1610171939319,13.45339128,1184.2,1184.1,50.0]
[1610171939519,13.45339128,1184.2,1183.8,2.5314]
[1610171939721,13.45339128,1184.2,1184.0,50.0]
[1610171940119,12.69558397,1184.1,1183.9,50.0]
[1610171940320,12.69558397,1184.1,1184.0,50.0]
[1610171940520,4.00959,1184.1,1183.9,50.0]
[1610171940821,4.00959,1184.1,1183.8,2.5314]
[1610171940822,4.00959,1184.1,1184.0,50.0]
[1610171941220,4.00959,1184.1,1183.9,50.0]
[1610171941621,4.00959,1184.1,1184.0,50.0]
[1610171941821,4.00959,1184.1,1183.9,50.0]
[1610171942021,81.75119746,1184.1,1183.9,50.0]
[1610171942221,81.75119746,1184.1,1183.5,1.8776]
[1610171942421,28.90817607,1184.0,1183.2,2.7052]
[1610171942822,12.35740171,1183.7,1182.9,51.9343]
[1610171943022,10.44926421,1183.3,1182.9,45.8953]
[1610171943221,10.44926421,1183.3,1183.0,50.0]
[1610171943222,90.4637,1183.2,1183.0,50.0]
[1610171943424,16.54633949,1183.1,1182.3,50.0]
[1610171943623,30.0,1183.0,1182.3,50.0]
[1610171943823,18.54213949,1183.1,1182.3,50.0]
[1610171944022,4.00959,1182.4,1182.1,50.0]
[1610171944224,10.64216594,1182.4,1182.1,50.0]
[1610171944424,8.61949861,1182.2,1182.1,50.0]
[1610171944624,8.61949861,1182.2,1181.8,8.0299]
[1610171944824,4.73712068,1182.2,1181.8,8.0299]
[1610171945023,4.73712068,1182.2,1181.9,50.0]
[1610171945224,8.63154577,1182.3,1181.9,50.0]
[1610171945626,4.00959,1182.4,1182.0,50.0]
[1610171946027,4.00959,1182.1,1181.9,50.0]
[1610171946327,4.00959,1182.1,1181.8,8.0299]
[1610171946726,4.00959,1182.1,1181.9,50.0]
[1610171947127,4.00959,1182.1,1182.0,50.0]
[1610171947427,4.00959,1182.1,1181.9,50.0]
[1610171947828,12.06557412,1182.6,1182.0,50.0]
[1610171948130,12.06557412,1182.6,1181.8,8.0299]
[1610171948131,3.405,1182.6,1182.3,4.00959]
[1610171948331,3.405,1182.6,1182.3,2.7359]
[1610171948533,13.45091257,1183.0,1182.4,50.0]
[1610171948933,13.44997572,1182.9,1182.5,50.0]
[1610171949133,13.43839998,1182.7,1182.5,50.0]
[1610171949333,13.43839998,1182.7,1182.4,50.0]
[1610171949533,4.76677476,1182.7,1182.6,50.0]
[1610171949734,4.76677476,1182.7,1182.6,52.9534]
[1610171949936,9.79613004,1182.7,1182.6,52.9534]
[1610171950136,4.00959,1182.7,1182.6,52.9534]
[1610171950637,13.81653057,1182.7,1182.6,52.9534]
[1610171951239,13.81653057,1182.7,1182.6,35.9534]
[1610171951240,17.54340258,1182.7,1182.6,35.9534]
[1610171951539,4.00959,1182.7,1182.6,35.9534]
[1610171952639,4.00959,1182.7,1182.6,24.1964]
[1610171953039,4.00959,1182.7,1182.3,2.7359]
[1610171953040,45.74743872,1182.7,1182.3,50.0]
[1610171953239,15.74743872,1182.7,1182.1,50.0]
[1610171953440,4.00959,1182.7,1181.8,8.0299]
[1610171953642,6.7122909,1182.3,1182.2,50.0]
[1610171953840,6.7122909,1182.3,1181.9,50.0]
[1610171954040,4.00959,1182.0,1181.8,8.0299]
[1610171954447,4.00959,1182.0,1181.9,50.0]
[1610171954646,17.52663443,1182.0,1181.9,50.0]
[1610171954846,17.52663443,1182.0,1181.8,58.0299]
[1610171955046,12.73196346,1182.0,1181.8,58.0299]
[1610171955248,17.52779713,1182.0,1181.8,58.0299]
[1610171955449,17.52779713,1182.0,1181.9,50.0]
[1610171955647,10.71973423,1182.0,1181.9,50.0]
[1610171955948,13.82376475,1182.0,1181.9,50.0]
[1610171956348,17.55485595,1182.0,1181.9,50.0]
[1610171956548,4.00959,1182.0,1181.9,50.0]
[1610171957353,17.61349119,1182.0,1181.9,50.0]
[1610171957850,4.00959,1182.0,1181.9,50.0]
[1610171958250,17.6633018,1182.0,1181.9,50.0]
[1610171958652,4.00959,1182.0,1181.9,50.0]
[1610171958853,24.42627526,1182.0,1181.9,50.0]
[1610171959653,5.68619,1182.0,1181.9,50.0]
[1610171960354,4.00959,1182.0,1181.9,50.0]
[1610171961356,5.69209,1182.0,1181.9,50.0]
[1610171962156,4.00959,1182.0,1181.9,50.0]
[1610171967661,13.69327695,1182.7,1181.9,50.0]
[1610171967861,13.69327695,1182.7,1182.0,50.0]
[1610171968061,4.00959,1182.1,1182.0,50.0]
[1610171968261,4.00959,1182.1,1181.9,50.0]
[1610171968461,13.69327695,1182.7,1182.0,50.0]
[1610171968661,20.46841297,1182.8,1182.0,50.0]
[1610171968867,23.86036404,1182.9,1181.9,50.0]
[1610171969066,23.86036404,1182.9,1182.1,50.0]
[1610171969266,3.405,1182.9,1182.1,52.5524]
[1610171969465,3.405,1182.9,1182.1,2.5524]
[1610171969666,3.405,1182.9,1182.2,50.0]
[1610171969667,21.04786471,1182.8,1182.2,50.0]
[1610171969967,21.04786471,1182.8,1182.3,50.0]
[1610171970166,4.00959,1182.4,1182.3,50.0]
[1610171970366,4.00959,1182.4,1182.2,50.0]
[1610171970667,4.00959,1182.4,1182.3,50.0]
[1610171971066,4.00959,1182.4,1182.2,50.0]
[1610171971470,4.00959,1182.4,1182.3,50.0]
[1610171971868,3.405,1182.9,1182.3,50.0]
[1610171972071,4.00959,1182.5,1182.3,54.00959]
[1610171972268,4.00959,1182.5,1182.4,50.0]
[1610171972868,21.03105025,1183.3,1182.4,50.0]
[1610171973069,14.24631012,1183.3,1182.4,52.2244]
[1610171973269,14.24631012,1183.3,1182.5,50.0]
[1610171973470,8.72106077,1183.5,1182.6,50.0]
[1610171973471,21.04826499,1183.5,1182.6,50.0]
[1610171973773,21.06734553,1183.6,1182.6,50.0]
[1610171974171,21.0891546,1183.8,1183.3,4.00959]
[1610171974371,21.0891546,1183.8,1183.3,6.06049]
[1610171974571,12.75505798,1183.9,1183.3,6.06049]
[1610171974572,25.10632336,1183.9,1183.3,6.06049]
[1610171974773,4.00959,1183.9,1183.4,50.0]
[1610171974972,4.00959,1183.9,1183.5,50.0]
[1610171975173,18.29202426,1183.9,1183.5,50.0]
[1610171975373,18.29202426,1183.9,1183.4,50.0]
[1610171975574,25.09458608,1183.9,1183.6,50.0]
[1610171975773,25.09458608,1183.9,1183.6,52.3294]
[1610171975973,18.29202426,1183.9,1183.6,2.3294]
[1610171976174,4.00959,1183.7,1183.6,2.3294]
[1610171976773,4.00959,1183.7,1183.6,52.3294]
[1610171977174,4.00959,1183.7,1183.6,2.3294]
[1610171977374,7.10989615,1183.7,1183.6,2.3294]
[1610171977776,7.10989615,1183.7,1183.3,2.0509]
[1610171977975,37.10989615,1183.7,1183.2,50.0]
[1610171978175,37.10989615,1183.7,1182.4,2.2244]
[1610171978176,4.00959,1183.3,1182.9,50.0]
[1610171978378,14.64620461,1183.3,1182.9,50.0]
[1610171978576,44.64620461,1183.3,1182.5,50.0]
[1610171978777,20.9923262,1183.0,1182.5,50.0]
[1610171978976,20.9923262,1183.0,1182.8,50.0]
[1610171979180,20.99114906,1182.9,1182.8,50.0]
[1610171979376,11.80101951,1182.9,1182.6,50.0]
[1610171979576,11.80101951,1182.9,1182.8,50.0]
[1610171979776,12.2877479,1182.9,1182.8,50.0]
[1610171979978,12.2877479,1182.9,1182.4,2.2244]
[1610171980176,4.00959,1182.5,1181.6,4.00959]
[1610171980376,5.68919,1182.5,1181.6,4.00959]
[1610171980576,5.68919,1182.5,1182.2,50.0]
[1610171980777,5.68919,1182.5,1182.2,2.6113]
[1610171981176,5.68919,1182.5,1182.3,50.0]
[1610171981376,1.6796,1182.5,1182.4,50.0]
[1610171981778,1.6796,1182.5,1182.3,50.0]
[1610171982177,3.405,1183.0,1182.4,54.00959]
[1610171982376,14.25727414,1183.2,1182.4,54.00959]
[1610171982577,14.266479,1183.3,1182.4,4.00959]
[1610171982777,14.2621116,1183.4,1182.5,50.0]
[1610171982977,14.2621116,1183.4,1182.5,52.1933]
[1610171983178,1.6739,1183.4,1182.5,52.1933]
[1610171983378,27.87073586,1183.6,1182.6,50.0]
[1610171983582,6.811,1183.6,1182.7,50.0]
[1610171983880,24.46307344,1183.8,1182.7,50.0]
[1610171984082,4.00959,1183.2,1182.7,4.00959]
[1610171984480,4.00959,1183.2,1182.8,50.0]
[1610171984680,24.45148385,1183.8,1182.8,50.0]
[1610171984883,3.405,1183.8,1182.9,50.0]
[1610171985283,3.405,1183.8,1183.0,50.0]
[1610171985582,3.405,1183.8,1182.9,50.0]
[1610171985982,3.405,1183.8,1183.0,50.0]
[1610171986184,4.00959,1183.3,1183.0,50.0]
[1610171986384,4.00959,1183.3,1182.9,50.0]
[1610171986586,4.00959,1183.3,1182.8,1.9337]
[1610171986788,4.00959,1183.3,1183.1,50.0]
[1610171986984,4.00959,1183.3,1183.1,2.4434]
[1610171987184,4.00959,1183.3,1183.1,52.4434]
[1610171987384,4.00959,1183.3,1183.2,50.0]
[1610171989485,3.405,1183.8,1183.2,50.0]
[1610171989886,3.405,1183.8,1183.3,50.0]
[1610171990287,4.00959,1183.5,1183.3,4.00959]
[1610171990487,3.405,1183.8,1183.4,50.0]
[1610171990687,3.405,1183.8,1183.4,52.465]
[1610171990888,3.405,1183.8,1183.5,50.0]
[1610171991088,21.07251664,1184.3,1183.5,50.0]
[1610171991288,21.07251664,1184.3,1183.6,50.0]
[1610171991488,21.08499754,1184.4,1183.6,50.0]
[1610171991688,21.08499754,1184.4,1183.5,50.0]
[1610171991890,29.82817446,1184.5,1183.7,50.0]
[1610171992088,4.00959,1184.4,1184.2,4.00959]
[1610171992289,21.08443038,1184.5,1184.2,4.00959]
[1610171992488,21.09008381,1184.6,1184.2,4.00959]
[1610171992689,21.09008381,1184.6,1184.3,50.0]
[1610171992889,21.10953118,1184.8,1184.3,50.0]
[1610171993092,29.86639494,1184.8,1184.4,50.0]
[1610171993493,21.12060672,1184.7,1184.3,50.0]
[1610171993890,29.88001112,1184.8,1184.5,50.0]
[1610171994091,4.00959,1184.6,1184.5,2.5482]
[1610171994691,4.00959,1184.6,1184.5,52.5482]
[1610171995993,21.12191286,1184.8,1184.5,52.5482]
[1610171996192,21.12191286,1184.8,1184.7,4.00959]
[1610171996594,24.52758262,1184.9,1184.7,4.00959]
[1610171996794,21.12258262,1184.9,1184.7,50.0]
[1610171997198,21.12258262,1184.9,1184.8,50.0]
[1610171997396,21.12258262,1184.9,1184.8,1.9426]
[1610171997596,8.75751064,1184.9,1184.8,1.9426]
[1610171997797,8.75751064,1184.9,1184.8,51.9426]
[1610171997997,13.79913127,1185.0,1184.8,51.9426]
[1610171998198,14.71654272,1184.9,1184.8,1.9426]
[1610171998599,17.81356398,1184.9,1184.8,1.9426]
[1610171998798,17.81356398,1184.9,1184.8,51.9426]
[1610171999900,25.14518578,1184.9,1184.8,51.9426]
[1610172001000,15.86845761,1184.9,1184.8,51.9426]
[1610172001199,15.86845761,1184.9,1184.8,1.9426]
[1610172001399,7.10647238,1184.9,1184.8,1.9426]
[1610172001599,54.2035,1184.8,1184.5,2.5482]
[1610172001799,84.2035,1184.8,1184.3,50.0]
[1610172001999,84.2035,1184.8,1184.5,50.0]
[1610172002000,12.63263079,1184.6,1184.5,50.0]
[1610172002201,49.15592079,1184.6,1184.5,50.0]
[1610172002399,21.08245665,1184.6,1184.5,50.0]
[1610172002799,14.78930689,1184.6,1183.8,50.0]
[1610172003003,52.2392,1184.5,1183.8,50.0]
[1610172003204,12.61387564,1184.0,1183.8,50.0]
[1610172003405,12.61387564,1184.0,1183.7,52.0027]
[1610172003605,12.61480191,1183.9,1183.7,2.0027]
[1610172003804,12.61480191,1183.9,1183.6,50.0]
[1610172004006,15.71567678,1183.8,1183.6,50.0]
[1610172004206,16.62076853,1183.7,1182.2,100.934]
[1610172004405,20.02576853,1183.7,1183.2,50.0]
[1610172004606,30.0,1183.6,1183.2,50.0]
[1610172004807,10.66551316,1183.3,1182.4,2.1436]
[1610172005007,12.71511316,1183.3,1182.4,2.1436]
[1610172005207,21.03950479,1182.9,1182.7,50.0]
[1610172005407,21.03950479,1182.9,1182.5,50.0]
[1610172005608,21.03520974,1182.7,1182.5,50.0]
[1610172005808,21.03520974,1182.7,1182.6,50.0]
[1610172006007,21.03520974,1182.7,1182.4,2.1436]
[1610172006008,21.03520974,1182.7,1182.5,50.0]
[1610172006208,4.00959,1182.6,1182.5,50.0]
[1610172006609,15.84104408,1182.6,1182.2,50.0]
[1610172006809,14.67858128,1182.6,1182.2,50.0]
[1610172007009,4.00959,1182.6,1182.0,50.0]
[1610172007209,21.04857099,1182.3,1182.1,50.0]
[1610172007609,21.04857099,1182.3,1181.0,50.0]
[1610172008012,21.04857099,1182.3,1182.2,20.0]
[1610172008210,7.65507424,1182.2,1181.6,1.9128]
[1610172008411,21.02845505,1182.2,1181.6,1.9128]
[1610172008612,14.22895081,1181.9,1181.8,50.0]
[1610172008811,14.22895081,1181.9,1181.6,1.9128]
[1610172009012,8.71060262,1181.9,1181.6,1.9128]
[1610172009212,8.71060262,1181.9,1181.8,50.0]
[1610172009613,8.71934276,1182.0,1181.8,50.0]
[1610172009812,8.71934276,1182.0,1181.7,50.0]
[1610172010016,8.71801889,1181.9,1181.2,2.465]
[1610172010214,11.82226297,1181.9,1181.8,50.0]
[1610172010614,8.71801889,1181.9,1181.3,50.0]
[1610172010815,8.71801889,1181.9,1181.4,50.0]
[1610172011019,21.01729723,1181.6,1181.4,50.0]
[1610172011216,21.01729723,1181.6,1181.3,50.0]
[1610172011416,21.01729723,1181.6,1181.4,50.0]
[1610172011816,21.01729723,1181.6,1181.3,50.0]
[1610172012017,21.03234625,1181.5,1181.4,50.0]
[1610172012216,25.04193625,1181.5,1181.4,50.0]
[1610172012416,25.04193625,1181.5,1181.3,50.0]
[1610172012617,25.04193625,1181.5,1181.2,2.465]
[1610172013016,25.04193625,1181.5,1181.4,50.0]
[1610172013216,25.04193625,1181.5,1181.3,50.0]
[1610172013416,4.00959,1181.5,1181.2,2.465]
[1610172013617,4.00959,1181.5,1181.4,50.0]
[1610172013816,4.00959,1181.5,1181.3,50.0]
[1610172014017,4.00959,1181.5,1181.2,2.465]
[1610172014217,1.7014,1181.6,1181.4,50.0]
[1610172014417,1.7014,1181.6,1181.3,50.0]
[1610172014617,22.80349359,1181.6,1181.3,50.0]
[1610172015017,21.08162779,1181.5,1181.4,50.0]
[1610172015219,21.08162779,1181.5,1181.3,50.0]
[1610172015618,21.08162779,1181.5,1181.4,50.0]
[1610172015818,8.7386353,1181.5,1181.4,50.0]
[1610172016118,21.07501867,1181.5,1181.3,50.0]
[1610172016321,4.00959,1181.4,1181.2,2.465]
[1610172016521,12.745315,1181.4,1181.2,2.465]
[1610172016719,15.85107505,1181.4,1181.3,50.0]
[1610172017119,17.79006828,1181.4,1181.0,51.9934]
[1610172017522,17.53943117,1181.4,1181.3,50.0]
[1610172017724,68.70222088,1181.4,1181.3,50.0]
[1610172017923,67.01382088,1181.4,1180.9,50.60500335]
[1610172018124,72.90975204,1181.4,1180.9,50.60500335]
[1610172018323,4.00959,1181.0,1180.9,50.60500335]
[1610172018525,80.61415082,1181.0,1180.9,0.60500335]
[1610172018725,82.54241231,1181.0,1180.9,0.60500335]
[1610172018926,82.54241231,1181.0,1180.9,50.60500335]
[1610172019125,99.11262299,1181.0,1180.9,50.60500335]
[1610172019525,99.11262299,1181.0,1180.9,0.60500335]
[1610172019727,88.46800068,1181.0,1180.9,0.60500335]
[1610172019927,22.27650068,1181.0,1180.9,50.60500335]
[1610172020129,8.8132045,1181.0,1180.9,50.60500335]
[1610172020529,26.73524976,1181.0,1180.9,50.60500335]
[1610172020729,5.70629,1181.0,1180.9,0.60500335]
[1610172020929,8.81314872,1181.0,1180.9,0.60500335]
[1610172021129,17.52102556,1181.0,1180.9,0.60500335]
[1610172021429,16.34898735,1181.0,1180.9,0.60500335]
[1610172021632,14.65228735,1181.0,1180.9,0.60500335]
[1610172021830,17.75912704,1181.0,1180.9,50.60500335]
[1610172022231,25.02493361,1181.0,1180.9,50.60500335]
[1610172022632,26.71523361,1181.0,1180.9,50.60500335]
[1610172022833,4.00959,1181.0,1180.9,50.60500335]
[1610172023231,4.00959,1181.0,1180.9,0.60500335]
[1610172023431,24.99343158,1181.0,1180.9,0.60500335]
[1610172023633,15.81578487,1181.0,1180.9,0.60500335]
[1610172024033,20.99413486,1181.0,1180.9,50.60500335]
[1610172024235,16.32100368,1181.0,1180.9,50.60500335]
[1610172024634,19.42806213,1181.0,1180.9,50.60500335]
[1610172024834,17.74536213,1181.0,1180.9,50.60500335]
[1610172025035,15.81805339,1181.0,1180.9,50.60500335]
[1610172025236,15.81805339,1181.0,1180.9,0.60500335]
[1610172025638,17.74091922,1181.0,1180.9,0.60500335]
[1610172025838,17.74091922,1181.0,1180.9,50.60500335]
[1610172026039,7.11664845,1181.0,1180.9,50.60500335]
[1610172026338,17.74425131,1181.0,1180.9,50.60500335]
[1610172026541,17.74425131,1181.0,1180.9,53.15510335]
[1610172026739,15.81783802,1181.0,1180.9,53.15510335]
[1610172027942,15.81783802,1181.0,1180.9,50.60500335]
[1610172028140,17.71538274,1181.0,1180.9,50.60500335]
[1610172029442,17.71538274,1181.0,1180.9,0.60500335]
[1610172030043,17.71538274,1181.0,1180.9,50.60500335]
[1610172030243,17.71538274,1181.0,1180.9,0.60500335]
[1610172030445,7.11664845,1181.0,1180.9,0.60500335]
[1610172030844,19.63124244,1181.0,1180.9,0.60500335]
[1610172031043,19.63124244,1181.0,1180.9,50.60500335]
[1610172031244,19.63124244,1181.0,1180.9,0.60500335]
[1610172031644,19.63124244,1181.0,1180.9,50.60500335]
[1610172031844,7.11664845,1181.0,1180.9,50.60500335]
[1610172032445,17.70072085,1181.0,1180.9,50.60500335]
[1610172033248,15.77804978,1181.0,1180.9,50.60500335]
[1610172033546,17.70049507,1181.0,1180.9,50.60500335]
[1610172035048,27.01279507,1181.0,1180.9,50.60500335]
[1610172035249,17.70049507,1181.0,1180.9,50.60500335]
[1610172035649,7.11664845,1181.0,1180.9,50.60500335]
[1610172035850,7.11664845,1181.0,1180.9,0.60500335]
[1610172036050,69.53644845,1181.0,1180.9,0.60500335]
[1610172036653,83.00474595,1181.0,1180.9,0.60500335]
[1610172037549,20.58494595,1181.0,1180.9,0.60500335]
[1610172038151,19.64171823,1181.0,1180.9,0.60500335]
[1610172038352,19.64171823,1181.0,1180.9,50.60500335]
[1610172038750,19.64171823,1181.0,1180.9,0.60500335]
[1610172039151,7.11664845,1181.0,1180.9,0.60500335]
[1610172039351,21.53929142,1181.0,1180.9,0.60500335]
[1610172039650,7.11664845,1181.0,1180.9,0.60500335]
[1610172039850,8.81474845,1181.0,1180.9,0.60500335]
[1610172040253,8.81474845,1181.0,1180.9,3.35e-06]
[1610172040450,8.81474845,1181.0,1180.8,50.0]
[1610172040451,25.12876,1181.0,1180.8,49.395]
[1610172040653,33.40045831,1181.0,1180.8,49.395]
[1610172040850,33.40045831,1181.0,1180.8,40.165]
[1610172041251,19.40809776,1180.9,1180.8,40.165]
[1610172041451,21.07809776,1180.9,1180.8,39.906]
[1610172041651,26.25956139,1180.9,1180.8,39.906]
[1610172041850,42.82092395,1180.9,1180.8,34.796]
[1610172042255,26.52176222,1180.9,1180.8,34.796]
[1610172042450,26.52176222,1180.9,1180.8,30.292]
[1610172042651,42.84319028,1180.9,1180.8,30.292]
[1610172044451,26.52176222,1180.9,1180.8,30.292]
[1610172044751,42.83710556,1180.9,1180.8,30.292]